fUST/lending_fUST_20260509
["ID","MTS","AMOUNT","RATE_DAILY","PERIOD"]
[421875098,1778261446000,-575.7,0.00013698,2]
[421875099,1778261446000,-575.7,0.00013698,2]
[421875104,1778261446000,-1000.0,0.00013699,2]
[421875105,1778261446000,-877.1662594,0.00013699,2]
[421875106,1778261446000,-151.0,0.00013699,2]
[421875107,1778261446000,-151.0,0.00013699,2]
[421875108,1778261446000,-1750.34514,0.00013699,2]
[421875085,1778261446000,-575.7,0.00013698,2]
[421875080,1778261446000,-575.7,0.00013698,2]
[421875102,1778261446000,-1362.2,0.00013698,2]
[421875076,1778261446000,-575.7,0.00013698,2]
[421875054,1778261446000,-601.45239503,0.00013698,2]
[421875081,1778261446000,-575.7,0.00013698,2]
[421875061,1778261446000,-500.0,0.00013698,2]
[421875071,1778261446000,-655.68,0.00013698,2]
[421875069,1778261446000,-1469.69,0.00013698,2]
[421875060,1778261446000,-1042.7,0.00013698,2]
[421875062,1778261446000,-2849.43,0.00013698,2]
[421875065,1778261446000,-611.37,0.00013698,2]
[421875064,1778261446000,-1162.47,0.00013698,2]
[421875063,1778261446000,-500.0,0.00013698,2]
[421875068,1778261446000,-500.0,0.00013698,2]
[421875070,1778261446000,-631.50991216,0.00013698,2]
[421875073,1778261446000,-1239.87,0.00013698,2]
[421875072,1778261446000,-500.0,0.00013698,2]
[421875074,1778261446000,-868.17,0.00013698,2]
[421875075,1778261446000,-500.0,0.00013698,2]
[421875079,1778261446000,-575.7,0.00013698,2]
[421875078,1778261446000,-575.7,0.00013698,2]
[421875084,1778261446000,-575.7,0.00013698,2]
[421875077,1778261446000,-575.7,0.00013698,2]
[421875082,1778261446000,-575.7,0.00013698,2]
[421875083,1778261446000,-575.7,0.00013698,2]
[421875067,1778261446000,-556.0,0.00013698,2]
[421875132,1778261447000,-7519.847683,0.00013961,7]
[421875131,1778261447000,-3839.923841,0.00013961,7]
[421875141,1778261447000,-500.0,0.00013972,2]
[421875129,1778261447000,-160.0,0.00013961,7]
[421875128,1778261447000,-2120.6925,0.00013961,7]
[421875130,1778261447000,-4081.385001,0.00013961,7]
[421875133,1778261447000,-160.0,0.00013961,2]
[421875138,1778261447000,-500.0,0.00013972,2]
[421875136,1778261447000,-500.0,0.00013972,2]
[421875137,1778261447000,-500.0,0.00013972,2]
[421875139,1778261447000,-500.0,0.00013972,2]
[421875140,1778261447000,-500.0,0.00013972,2]
[421875127,1778261447000,-160.0,0.00013961,7]
[421875134,1778261447000,-3783.308324,0.00013961,2]
[421875126,1778261447000,-950.302024,0.00013961,2]
[421875110,1778261447000,-1000.0,0.00013699,2]
[421875124,1778261447000,-160.0,0.00013961,2]
[421875142,1778261447000,-500.0,0.00013972,2]
[421875113,1778261447000,-500.0,0.00013729,2]
[421875112,1778261447000,-500.0,0.00013729,2]
[421875111,1778261447000,-500.0,0.00013729,2]
[421875109,1778261447000,-731.993433,0.00013699,2]
[421875114,1778261447000,-325.7485516,0.00013786,2]
[421875115,1778261447000,-1190.15762301,0.00013787,7]
[421875117,1778261447000,-200.0,0.00013812,2]
[421875116,1778261447000,-732.36311193,0.00013787,7]
[421875118,1778261447000,-500.0,0.0001385,2]
[421875119,1778261447000,-500.0,0.00013864,2]
[421875122,1778261447000,-500.0,0.00013864,2]
[421875121,1778261447000,-500.0,0.00013864,2]
[421875120,1778261447000,-500.0,0.00013864,2]
[421875123,1778261447000,-500.0,0.00013933,2]
[421875125,1778261447000,-555.151012,0.00013961,2]
[421875145,1778261447000,-528.26,0.00013972,2]
[421875135,1778261447000,-7406.616649,0.00013961,2]
[421875149,1778261447000,-500.0,0.00013972,2]
[421875165,1778261447000,-868.17,0.00013972,2]
[421875163,1778261447000,-585.89419618,0.00013972,2]
[421875167,1778261447000,-806.71,0.00013972,2]
[421875168,1778261447000,-1324.78,0.00013972,2]
[421875169,1778261447000,-1362.2,0.00013972,2]
[421875170,1778261447000,-456.3497628,0.00013982,2]
[421875166,1778261447000,-500.0,0.00013972,2]
[421875171,1778261447000,-1605.67855885,0.00014,2]
[421875178,1778261447000,-194.0,0.0001411,3]
[421875177,1778261447000,-191.28,0.000141,2]
[421875175,1778261447000,-732.36311193,0.00014083,7]
[421875173,1778261447000,-1190.15762301,0.00014083,7]
[421875176,1778261447000,-1605.67855885,0.000141,2]
[421875148,1778261447000,-500.0,0.00013972,2]
[421875172,1778261447000,-1190.15762301,0.00014083,7]
[421875162,1778261447000,-655.68,0.00013972,2]
[421875174,1778261447000,-732.36311193,0.00014083,7]
[421875161,1778261447000,-1469.69,0.00013972,2]
[421875150,1778261447000,-500.0,0.00013972,2]
[421875164,1778261447000,-1239.87,0.00013972,2]
[421875147,1778261447000,-500.0,0.00013972,2]
[421875144,1778261447000,-508.24,0.00013972,2]
[421875146,1778261447000,-774.07,0.00013972,2]
[421875151,1778261447000,-1156.24,0.00013972,2]
[421875152,1778261447000,-1042.7,0.00013972,2]
[421875143,1778261447000,-500.0,0.00013972,2]
[421875154,1778261447000,-2849.43,0.00013972,2]
[421875156,1778261447000,-1162.47,0.00013972,2]
[421875155,1778261447000,-500.0,0.00013972,2]
[421875159,1778261447000,-556.0,0.00013972,2]
[421875157,1778261447000,-611.37,0.00013972,2]
[421875158,1778261447000,-2636.1,0.00013972,2]
[421875153,1778261447000,-500.0,0.00013972,2]
[421875160,1778261447000,-500.0,0.00013972,2]
[421875220,1778261448000,-151.0,0.00014398,2]
[421875217,1778261448000,-7750.5569776,0.00014315,2]
[421875219,1778261448000,-1000.0,0.00014398,2]
[421875208,1778261448000,-868.17,0.00014246,2]
[421875211,1778261448000,-1324.78,0.00014246,2]
[421875207,1778261448000,-1239.87,0.00014246,2]
[421875206,1778261448000,-655.68,0.00014246,2]
[421875209,1778261448000,-500.0,0.00014246,2]
[421875221,1778261448000,-1605.67855885,0.000144,2]
[421875214,1778261448000,-1100.50703206,0.00014277,2]
[421875210,1778261448000,-806.71,0.00014246,2]
[421875222,1778261448000,-1050.0,0.000144,4]
[421875237,1778261448000,-2000.0,0.000145,7]
[421875218,1778261448000,-164.9,0.00014377,2]
[421875224,1778261448000,-799.0,0.000144,2]
[421875226,1778261448000,-250.0,0.00014412,2]
[421875227,1778261448000,-1000.0,0.00014412,2]
[421875228,1778261448000,-1000.0,0.00014412,2]
[421875229,1778261448000,-250.0,0.00014412,2]
[421875239,1778261448000,-305.36093121,0.0001452,2]
[421875238,1778261448000,-500.0,0.0001452,2]
[421875230,1778261448000,-1000.0,0.00014412,2]
[421875235,1778261448000,-537.6845,0.00014496,2]
[421875231,1778261448000,-165.67,0.00014471,2]
[421875215,1778261448000,-1000.0,0.00014277,2]
[421875223,1778261448000,-1356.88911742,0.000144,4]
[421875216,1778261448000,-1605.67855885,0.000143,2]
[421875189,1778261448000,-528.26,0.00014246,2]
[421875213,1778261448000,-7910.46830338,0.00014257,2]
[421875179,1778261448000,-200.0,0.00014238,2]
[421875180,1778261448000,-500.0,0.00014246,2]
[421875182,1778261448000,-500.0,0.00014246,2]
[421875192,1778261448000,-500.0,0.00014246,2]
[421875184,1778261448000,-500.0,0.00014246,2]
[421875191,1778261448000,-500.0,0.00014246,2]
[421875181,1778261448000,-500.0,0.00014246,2]
[421875183,1778261448000,-500.0,0.00014246,2]
[421875190,1778261448000,-774.07,0.00014246,2]
[421875185,1778261448000,-500.0,0.00014246,2]
[421875186,1778261448000,-500.0,0.00014246,2]
[421875187,1778261448000,-500.0,0.00014246,2]
[421875234,1778261448000,-537.6845,0.00014496,2]
[421875188,1778261448000,-508.24,0.00014246,2]
[421875194,1778261448000,-500.0,0.00014246,2]
[421875193,1778261448000,-500.0,0.00014246,2]
[421875202,1778261448000,-2636.1,0.00014246,2]
[421875203,1778261448000,-556.0,0.00014246,2]
[421875200,1778261448000,-1162.47,0.00014246,2]
[421875195,1778261448000,-1156.24,0.00014246,2]
[421875199,1778261448000,-500.0,0.00014246,2]
[421875204,1778261448000,-500.0,0.00014246,2]
[421875196,1778261448000,-1042.7,0.00014246,2]
[421875197,1778261448000,-500.0,0.00014246,2]
[421875201,1778261448000,-611.37,0.00014246,2]
[421875198,1778261448000,-2849.43,0.00014246,2]
[421875212,1778261448000,-1362.2,0.00014246,2]
[421875205,1778261448000,-1469.69,0.00014246,2]
[421875236,1778261448000,-2000.0,0.000145,7]
[421875225,1778261448000,-1000.0,0.00014412,2]
[421875233,1778261448000,-445.202766,0.00014496,2]
[421875267,1778261448000,-500.0,0.0001452,2]
[421875268,1778261448000,-806.71,0.0001452,2]
[421875264,1778261448000,-655.68,0.0001452,2]
[421875271,1778261448000,-647.0,0.00014548,2]
[421875269,1778261448000,-1324.78,0.0001452,2]
[421875275,1778261448000,-687.6445828,0.00014551,2]
[421875277,1778261448000,-1605.67855885,0.000146,2]
[421875284,1778261448000,-166.58,0.00014663,2]
[421875285,1778261448000,-200.0,0.00014665,2]
[421875286,1778261448000,-325.7485516,0.00014682,2]
[421875280,1778261448000,-1135.536161,0.00014659,2]
[421875288,1778261448000,-160.0,0.00014724,3]
[421875276,1778261448000,-500.0,0.00014576,2]
[421875279,1778261448000,-731.993433,0.00014658,2]
[421875278,1778261448000,-503.71690218,0.00014632,2]
[421875281,1778261448000,-2891.853409,0.00014659,7]
[421875283,1778261448000,-5159.056806,0.00014659,2]
[421875289,1778261448000,-38000.0,0.00014776,3]
[421875291,1778261448000,-38000.0,0.00014794,3]
[421875290,1778261448000,-38000.0,0.00014785,3]
[421875293,1778261448000,-500.0,0.00014794,2]
[421875292,1778261448000,-36866.57003033,0.00014794,3]
[421875294,1778261448000,-500.0,0.00014794,2]
[421875295,1778261448000,-500.0,0.00014794,2]
[421875296,1778261448000,-500.0,0.00014794,2]
[421875232,1778261448000,-1000.0,0.00014481,2]
[421875282,1778261448000,-5236.259784,0.00014659,7]
[421875273,1778261448000,-442.0,0.00014548,2]
[421875287,1778261448000,-600.0,0.00014693,2]
[421875270,1778261448000,-1362.2,0.0001452,2]
[421875274,1778261448000,-185.0,0.00014548,2]
[421875240,1778261448000,-500.0,0.0001452,2]
[421875242,1778261448000,-500.0,0.0001452,2]
[421875250,1778261448000,-434.64576788,0.0001452,2]
[421875249,1778261448000,-500.0,0.0001452,2]
[421875248,1778261448000,-774.07,0.0001452,2]
[421875251,1778261448000,-500.0,0.0001452,2]
[421875243,1778261448000,-500.0,0.0001452,2]
[421875244,1778261448000,-500.0,0.0001452,2]
[421875247,1778261448000,-528.26,0.0001452,2]
[421875245,1778261448000,-500.0,0.0001452,2]
[421875246,1778261448000,-508.24,0.0001452,2]
[421875253,1778261448000,-1156.24,0.0001452,2]
[421875260,1778261448000,-2636.1,0.0001452,2]
[421875241,1778261448000,-500.0,0.0001452,2]
[421875272,1778261448000,-1411.0,0.00014548,2]
[421875258,1778261448000,-1162.47,0.0001452,2]
[421875266,1778261448000,-868.17,0.0001452,2]
[421875265,1778261448000,-1239.87,0.0001452,2]
[421875254,1778261448000,-1042.7,0.0001452,2]
[421875255,1778261448000,-500.0,0.0001452,2]
[421875261,1778261448000,-556.0,0.0001452,2]
[421875262,1778261448000,-500.0,0.0001452,2]
[421875263,1778261448000,-1469.69,0.0001452,2]
[421875259,1778261448000,-611.37,0.0001452,2]
[421875252,1778261448000,-500.0,0.0001452,2]
[421875257,1778261448000,-611.39914407,0.0001452,2]
[421875256,1778261448000,-2849.43,0.0001452,2]
[421875331,1778261449000,-1500.0,0.0001496,2]
[421875337,1778261449000,-10146.07077257,0.00015,2]
[421875327,1778261449000,-166.49,0.00014923,2]
[421875328,1778261449000,-1164.61092998,0.00014946,2]
[421875332,1778261449000,-1500.0,0.0001496,2]
[421875334,1778261449000,-1500.0,0.0001496,2]
[421875326,1778261449000,-422.07450877,0.000149,2]
[421875330,1778261449000,-350.0,0.0001496,2]
[421875336,1778261449000,-1894.54135148,0.00015,2]
[421875335,1778261449000,-3831.77798648,0.00014968,2]
[421875339,1778261449000,-337.7882366,0.00015,2]
[421875325,1778261449000,-422.07450877,0.000149,2]
[421875338,1778261449000,-337.7882366,0.00015,2]
[421875347,1778261449000,-162.41862486,0.00015059,2]
[421875340,1778261449000,-50962.0,0.00015,2]
[421875342,1778261449000,-166.213,0.00015018,2]
[421875348,1778261449000,-500.0,0.00015068,2]
[421875344,1778261449000,-1500.0,0.00015029,2]
[421875343,1778261449000,-151.937,0.00015018,2]
[421875346,1778261449000,-557.5788265,0.00015044,2]
[421875345,1778261449000,-461.67526834,0.00015044,2]
[421875351,1778261449000,-517.16281059,0.00015068,2]
[421875353,1778261449000,-500.0,0.00015068,2]
[421875356,1778261449000,-774.07,0.00015068,2]
[421875352,1778261449000,-500.0,0.00015068,2]
[421875358,1778261449000,-500.0,0.00015068,2]
[421875341,1778261449000,-150.811,0.00015018,2]
[421875333,1778261449000,-350.0,0.0001496,2]
[421875354,1778261449000,-508.24,0.00015068,2]
[421875323,1778261449000,-801.34186343,0.00014824,2]
[421875298,1778261449000,-500.0,0.00014794,2]
[421875300,1778261449000,-508.24,0.00014794,2]
[421875297,1778261449000,-500.0,0.00014794,2]
[421875299,1778261449000,-500.0,0.00014794,2]
[421875301,1778261449000,-528.26,0.00014794,2]
[421875303,1778261449000,-500.0,0.00014794,2]
[421875304,1778261449000,-500.0,0.00014794,2]
[421875305,1778261449000,-500.0,0.00014794,2]
[421875306,1778261449000,-1156.24,0.00014794,2]
[421875302,1778261449000,-774.07,0.00014794,2]
[421875312,1778261449000,-2636.1,0.00014794,2]
[421875310,1778261449000,-1162.47,0.00014794,2]
[421875324,1778261449000,-422.07450878,0.000149,2]
[421875309,1778261449000,-2849.43,0.00014794,2]
[421875307,1778261449000,-1042.7,0.00014794,2]
[421875311,1778261449000,-611.37,0.00014794,2]
[421875314,1778261449000,-500.0,0.00014794,2]
[421875315,1778261449000,-1469.69,0.00014794,2]
[421875313,1778261449000,-556.0,0.00014794,2]
[421875316,1778261449000,-655.68,0.00014794,2]
[421875317,1778261449000,-1239.87,0.00014794,2]
[421875318,1778261449000,-868.17,0.00014794,2]
[421875319,1778261449000,-500.0,0.00014794,2]
[421875322,1778261449000,-1362.2,0.00014794,2]
[421875321,1778261449000,-1324.78,0.00014794,2]
[421875320,1778261449000,-806.71,0.00014794,2]
[421875308,1778261449000,-500.0,0.00014794,2]
[421875349,1778261449000,-500.0,0.00015068,2]
[421875329,1778261449000,-1500.0,0.0001496,2]
[421875359,1778261449000,-500.0,0.00015068,2]
[421875389,1778261449000,-500.0,0.00015342,2]
[421875393,1778261449000,-500.0,0.00015342,2]
[421875388,1778261449000,-155.0,0.0001534,2]
[421875383,1778261449000,-171.02,0.00015243,2]
[421875390,1778261449000,-500.0,0.00015342,2]
[421875391,1778261449000,-500.0,0.00015342,2]
[421875392,1778261449000,-304.37372653,0.00015342,2]
[421875387,1778261449000,-10146.07077257,0.000153,2]
[421875396,1778261449000,-774.07,0.00015342,2]
[421875397,1778261449000,-500.0,0.00015342,2]
[421875399,1778261449000,-1156.24,0.00015342,2]
[421875398,1778261449000,-500.0,0.00015342,2]
[421875385,1778261449000,-2861.44370131,0.00015288,2]
[421875407,1778261449000,-500.0,0.00015342,2]
[421875400,1778261449000,-1042.7,0.00015342,2]
[421875404,1778261449000,-611.37,0.00015342,2]
[421875408,1778261449000,-1469.69,0.00015342,2]
[421875403,1778261449000,-1162.47,0.00015342,2]
[421875402,1778261449000,-2849.43,0.00015342,2]
[421875405,1778261449000,-2636.1,0.00015342,2]
[421875406,1778261449000,-556.0,0.00015342,2]
[421875410,1778261449000,-1239.87,0.00015342,2]
[421875409,1778261449000,-655.68,0.00015342,2]
[421875412,1778261449000,-500.0,0.00015342,2]
[421875413,1778261449000,-806.71,0.00015342,2]
[421875360,1778261449000,-1156.24,0.00015068,2]
[421875401,1778261449000,-500.0,0.00015342,2]
[421875394,1778261449000,-508.24,0.00015342,2]
[421875411,1778261449000,-868.17,0.00015342,2]
[421875395,1778261449000,-528.26,0.00015342,2]
[421875386,1778261449000,-1894.54135148,0.000153,2]
[421875350,1778261449000,-500.0,0.00015068,2]
[421875357,1778261449000,-500.0,0.00015068,2]
[421875361,1778261449000,-1042.7,0.00015068,2]
[421875363,1778261449000,-2849.43,0.00015068,2]
[421875367,1778261449000,-556.0,0.00015068,2]
[421875369,1778261449000,-1469.69,0.00015068,2]
[421875364,1778261449000,-1162.47,0.00015068,2]
[421875366,1778261449000,-2636.1,0.00015068,2]
[421875362,1778261449000,-500.0,0.00015068,2]
[421875365,1778261449000,-611.37,0.00015068,2]
[421875370,1778261449000,-655.68,0.00015068,2]
[421875368,1778261449000,-500.0,0.00015068,2]
[421875355,1778261449000,-528.26,0.00015068,2]
[421875372,1778261449000,-868.17,0.00015068,2]
[421875371,1778261449000,-1239.87,0.00015068,2]
[421875381,1778261449000,-1894.54135148,0.000152,2]
[421875380,1778261449000,-160.0,0.00015122,4]
[421875382,1778261449000,-10146.07077257,0.000152,2]
[421875378,1778261449000,-200.0,0.00015092,2]
[421875374,1778261449000,-806.71,0.00015068,2]
[421875384,1778261449000,-171.32,0.00015271,2]
[421875377,1778261449000,-581.33996,0.00015068,2]
[421875375,1778261449000,-1324.78,0.00015068,2]
[421875414,1778261449000,-1324.78,0.00015342,2]
[421875376,1778261449000,-1362.2,0.00015068,2]
[421875373,1778261449000,-500.0,0.00015068,2]
[421875379,1778261449000,-220.0,0.000151,2]
[421875459,1778261450000,-500.0,0.00015616,2]
[421875455,1778261450000,-508.24,0.00015616,2]
[421875453,1778261450000,-500.0,0.00015616,2]
[421875452,1778261450000,-500.0,0.00015616,2]
[421875447,1778261450000,-1745.73964942,0.000156,2]
[421875449,1778261450000,-500.0,0.000156,2]
[421875435,1778261450000,-2000.0,0.00015507,2]
[421875458,1778261450000,-500.0,0.00015616,2]
[421875441,1778261450000,-160.0,0.00015519,5]
[421875448,1778261450000,-10146.07077257,0.000156,2]
[421875437,1778261450000,-2085.98384166,0.00015507,2]
[421875466,1778261450000,-2636.1,0.00015616,2]
[421875450,1778261450000,-500.0,0.000156,2]
[421875456,1778261450000,-528.26,0.00015616,2]
[421875451,1778261450000,-500.0,0.00015616,2]
[421875457,1778261450000,-774.07,0.00015616,2]
[421875460,1778261450000,-1156.24,0.00015616,2]
[421875467,1778261450000,-556.0,0.00015616,2]
[421875465,1778261450000,-611.37,0.00015616,2]
[421875463,1778261450000,-2849.43,0.00015616,2]
[421875468,1778261450000,-500.0,0.00015616,2]
[421875462,1778261450000,-500.0,0.00015616,2]
[421875440,1778261450000,-2000.0,0.00015507,2]
[421875464,1778261450000,-1162.47,0.00015616,2]
[421875454,1778261450000,-500.0,0.00015616,2]
[421875438,1778261450000,-2000.0,0.00015507,2]
[421875431,1778261450000,-5000.0,0.00015494,2]
[421875436,1778261450000,-500.27175462,0.00015507,2]
[421875461,1778261450000,-1042.7,0.00015616,2]
[421875420,1778261450000,-2254.04763511,0.0001541,2]
[421875418,1778261450000,-250.44973723,0.0001541,2]
[421875419,1778261450000,-1001.79894894,0.0001541,2]
[421875415,1778261450000,-1362.2,0.00015342,2]
[421875417,1778261450000,-10387.36538603,0.000154,2]
[421875416,1778261450000,-7910.46830338,0.0001536,2]
[421875428,1778261450000,-3617.04061169,0.00015494,2]
[421875422,1778261450000,-6261.24343085,0.0001541,2]
[421875432,1778261450000,-1894.54135148,0.000155,2]
[421875424,1778261450000,-365.69693083,0.0001541,2]
[421875423,1778261450000,-9016.19054043,0.0001541,2]
[421875433,1778261450000,-2226.18150881,0.000155,2]
[421875425,1778261450000,-1462.78772332,0.0001541,2]
[421875429,1778261450000,-5000.0,0.00015494,2]
[421875421,1778261450000,-4007.19579575,0.0001541,2]
[421875426,1778261450000,-3287.98110509,0.0001541,2]
[421875427,1778261450000,-7750.5569776,0.00015467,2]
[421875430,1778261450000,-5000.0,0.00015494,2]
[421875434,1778261450000,-10146.07077257,0.000155,2]
[421875442,1778261450000,-3924.86414349,0.00015554,3]
[421875443,1778261450000,-2000.0,0.00015577,2]
[421875445,1778261450000,-578.20924308,0.00015592,2]
[421875444,1778261450000,-478.75725327,0.00015592,2]
[421875446,1778261450000,-1894.54135148,0.000156,2]
[421875439,1778261450000,-214.36283169,0.00015507,2]
[421875469,1778261450000,-1469.69,0.00015616,2]
[421875470,1778261450000,-655.68,0.00015616,2]
[421875471,1778261450000,-1239.87,0.00015616,2]
[421875502,1778261450000,-487.0,0.0001589,2]
[421875498,1778261450000,-500.0,0.0001589,2]
[421875503,1778261450000,-500.0,0.0001589,2]
[421875505,1778261450000,-1042.7,0.0001589,2]
[421875504,1778261450000,-1156.24,0.0001589,2]
[421875506,1778261450000,-2849.43,0.0001589,2]
[421875508,1778261450000,-611.37,0.0001589,2]
[421875507,1778261450000,-1162.47,0.0001589,2]
[421875510,1778261450000,-556.0,0.0001589,2]
[421875511,1778261450000,-1469.69,0.0001589,2]
[421875512,1778261450000,-655.68,0.0001589,2]
[421875501,1778261450000,-774.07,0.0001589,2]
[421875514,1778261450000,-868.17,0.0001589,2]
[421875515,1778261450000,-806.71,0.0001589,2]
[421875516,1778261450000,-1324.78,0.0001589,2]
[421875519,1778261450000,-1745.73964942,0.000159,2]
[421875517,1778261450000,-1362.2,0.0001589,2]
[421875521,1778261450000,-160.0,0.00015916,6]
[421875518,1778261450000,-2000.0,0.00015891,7]
[421875520,1778261450000,-10146.07077257,0.000159,2]
[421875523,1778261450000,-300.79435359,0.00015973,2]
[421875522,1778261450000,-500.0,0.00015973,2]
[421875525,1778261450000,-500.0,0.00015973,2]
[421875524,1778261450000,-500.0,0.00015973,2]
[421875509,1778261450000,-2636.1,0.0001589,2]
[421875499,1778261450000,-508.24,0.0001589,2]
[421875513,1778261450000,-1239.87,0.0001589,2]
[421875497,1778261450000,-205.0,0.0001589,2]
[421875500,1778261450000,-528.26,0.0001589,2]
[421875472,1778261450000,-868.17,0.00015616,2]
[421875474,1778261450000,-1324.78,0.00015616,2]
[421875476,1778261450000,-1289.56096638,0.00015618,14]
[421875475,1778261450000,-1362.2,0.00015616,2]
[421875473,1778261450000,-806.71,0.00015616,2]
[421875480,1778261450000,-2226.18150881,0.000157,2]
[421875479,1778261450000,-370.86,0.000157,14]
[421875482,1778261450000,-197.18664737,0.000157,2]
[421875478,1778261450000,-644.78048319,0.00015669,60]
[421875483,1778261450000,-197.18664737,0.000157,2]
[421875484,1778261450000,-1289.56096638,0.00015707,14]
[421875477,1778261450000,-1289.56096638,0.00015662,14]
[421875481,1778261450000,-197.1866474,0.000157,2]
[421875491,1778261450000,-469.02,0.000158,7]
[421875495,1778261450000,-1289.56096638,0.00015839,14]
[421875493,1778261450000,-1745.73964942,0.000158,2]
[421875492,1778261450000,-2226.18150881,0.000158,2]
[421875487,1778261450000,-644.78048319,0.00015754,60]
[421875490,1778261450000,-644.78048319,0.00015797,60]
[421875496,1778261450000,-500.0,0.0001589,2]
[421875485,1778261450000,-644.78048319,0.00015712,60]
[421875486,1778261450000,-1289.56096638,0.00015751,14]
[421875494,1778261450000,-10146.07077257,0.000158,2]
[421875489,1778261450000,-1289.56096638,0.00015795,14]
[421875488,1778261450000,-156.0,0.00015762,2]
[421875563,1778261451000,-2722.855087,0.00016055,7]
[421875562,1778261451000,-1503.763773,0.00016055,7]
[421875568,1778261451000,-3000.0,0.0001606,2]
[421875569,1778261451000,-3000.0,0.0001607,2]
[421875566,1778261451000,-2500.0,0.00016055,2]
[421875559,1778261451000,-291.0,0.00016041,2]
[421875567,1778261451000,-2500.0,0.00016055,2]
[421875556,1778261451000,-177.91455616,0.0001603,14]
[421875549,1778261451000,-2226.18150881,0.00016,2]
[421875553,1778261451000,-231.12930527,0.00016008,60]
[421875564,1778261451000,-2682.709539,0.00016055,2]
[421875561,1778261451000,-590.478803,0.00016055,2]
[421875565,1778261451000,-2500.0,0.00016055,2]
[421875579,1778261451000,-3000.0,0.000161,2]
[421875570,1778261451000,-3000.0,0.0001608,2]
[421875574,1778261451000,-2000.0,0.00016097,7]
[421875575,1778261451000,-179.69750716,0.00016099,60]
[421875576,1778261451000,-2226.18150881,0.000161,2]
[421875572,1778261451000,-218.0,0.00016092,2]
[421875577,1778261451000,-1745.73964942,0.000161,2]
[421875573,1778261451000,-157.0,0.00016092,2]
[421875571,1778261451000,-3000.0,0.0001609,2]
[421875578,1778261451000,-10146.07077257,0.000161,2]
[421875580,1778261451000,-3000.0,0.0001611,2]
[421875581,1778261451000,-3000.0,0.0001612,2]
[421875548,1778261451000,-1561.00903491,0.00016,2]
[421875560,1778261451000,-3000.0,0.0001605,2]
[421875552,1778261451000,-3000.0,0.00016,2]
[421875533,1778261451000,-500.0,0.00015973,2]
[421875551,1778261451000,-161.58879827,0.00016,3]
[421875531,1778261451000,-500.0,0.00015973,2]
[421875591,1778261451000,-100941.05612129,0.0001616,2]
[421875530,1778261451000,-500.0,0.00015973,2]
[421875526,1778261451000,-500.0,0.00015973,2]
[421875529,1778261451000,-500.0,0.00015973,2]
[421875528,1778261451000,-500.0,0.00015973,2]
[421875527,1778261451000,-500.0,0.00015973,2]
[421875532,1778261451000,-500.0,0.00015973,2]
[421875535,1778261451000,-500.0,0.00015973,2]
[421875534,1778261451000,-518.62302441,0.00015973,2]
[421875536,1778261451000,-500.17922279,0.00015973,2]
[421875540,1778261451000,-98837.34763429,0.00016,2]
[421875554,1778261451000,-3000.0,0.0001601,2]
[421875538,1778261451000,-163.48593079,0.00015973,2]
[421875545,1778261451000,-308115.85642716,0.00016,2]
[421875541,1778261451000,-211.96489848,0.00016,2]
[421875544,1778261451000,-440600.76968797,0.00016,2]
[421875539,1778261451000,-160.0,0.00015999,2]
[421875543,1778261451000,-258.0,0.00016,2]